fUST/lending_fUST_20240422
["ID","MTS","AMOUNT","RATE_DAILY","PERIOD"]
[323164784,1713762637937,-500.0,0.00021917,2]
[323164785,1713762637948,-500.0,0.00021917,2]
[323164786,1713762637957,-867.03,0.00021917,2]
[323164787,1713762637966,-500.0,0.00021917,2]
[323164788,1713762637975,-500.0,0.00021917,2]
[323164789,1713762637985,-500.0,0.00021917,2]
[323164790,1713762637994,-500.0,0.00021917,2]
[323164791,1713762638132,-500.0,0.00021917,2]
[323164792,1713762638142,-500.0,0.00021917,2]
[323164793,1713762638151,-500.0,0.00021917,2]
[323164794,1713762638161,-500.0,0.00021917,2]
[323164795,1713762638170,-500.0,0.00021917,2]
[323164796,1713762638179,-500.0,0.00021917,2]
[323164797,1713762638188,-500.0,0.00021917,2]
[323164798,1713762638197,-500.0,0.00021917,2]
[323164799,1713762638206,-500.0,0.00021917,2]
[323164800,1713762638215,-500.0,0.00021917,2]
[323164801,1713762638224,-500.0,0.00021917,2]
[323164802,1713762638233,-500.0,0.00021917,2]
[323164803,1713762638242,-311.21786437,0.00021917,2]
[323164804,1713762638251,-500.0,0.00021917,2]
[323164805,1713762638261,-502.34284996,0.00021917,2]
[323164806,1713762638270,-816.81,0.00021917,2]
[323164807,1713762638279,-151.0,0.00021917,2]
[323164808,1713762638288,-500.0,0.00021917,2]
[323164809,1713762638297,-900.18,0.00021917,2]
[323164810,1713762638306,-500.0,0.00021917,2]
[323164811,1713762638316,-500.0,0.00021917,2]
[323164812,1713762638325,-500.0,0.00021917,2]
[323164813,1713762638334,-500.0,0.00021917,2]
[323164814,1713762638343,-500.0,0.00021917,2]
[323164815,1713762638353,-503.7245007,0.00021917,2]
[323164816,1713762638362,-500.0,0.00021917,2]
[323164817,1713762638372,-500.0,0.00021917,2]
[323164818,1713762638382,-500.0,0.00021917,2]
[323164819,1713762638392,-500.0,0.00021917,2]
[323164820,1713762638402,-500.0,0.00021917,2]
[323164821,1713762638411,-506.64710236,0.00021917,2]
[323164822,1713762638420,-500.0,0.00021917,2]
[323164823,1713762638429,-500.0,0.00021917,2]
[323164824,1713762638438,-500.0,0.00021917,2]
[323164825,1713762638447,-500.0,0.00021917,2]
[323164826,1713762638456,-500.0,0.00021917,2]
[323164827,1713762638465,-500.0,0.00021917,2]
[323164828,1713762638474,-500.0,0.00021917,2]
[323164829,1713762638484,-500.0,0.00021917,2]
[323164830,1713762638493,-500.0,0.00021917,2]
[323164831,1713762638502,-500.0,0.00021917,2]
[323164832,1713762638511,-500.0,0.00021917,2]
[323164833,1713762638520,-500.0,0.00021917,2]
[323164834,1713762638529,-500.0,0.00021917,2]
[323164835,1713762638538,-500.0,0.00021917,2]
[323164836,1713762638547,-1246.69,0.00021917,2]
[323164837,1713762638556,-1088.83,0.00021917,2]
[323164838,1713762638565,-217.86644057,0.00021917,2]
[323164839,1713762638574,-500.11279958,0.00021917,2]
[323164840,1713762638583,-611.44025979,0.00021917,2]
[323164841,1713762638592,-500.0,0.00021917,2]
[323164842,1713762638602,-500.0,0.00021917,2]
[323164843,1713762638613,-3141.48,0.00021917,2]
[323164844,1713762638622,-500.0,0.00021917,2]
[323164845,1713762638631,-500.0,0.00021917,2]
[323164846,1713762638642,-883.61,0.00021917,2]
[323164847,1713762638651,-500.0,0.00021917,2]
[323164848,1713762638660,-500.0,0.00021917,2]
[323164849,1713762638669,-500.0,0.00021917,2]
[323164850,1713762638678,-500.0,0.00021917,2]
[323164851,1713762638687,-501.70370906,0.00021917,2]
[323164852,1713762638696,-500.0,0.00021917,2]
[323164853,1713762638705,-500.0,0.00021917,2]
[323164854,1713762638714,-500.28009429,0.00021917,2]
[323164855,1713762638724,-500.0,0.00021917,2]
[323164856,1713762638733,-503.17030607,0.00021917,2]
[323164857,1713762638743,-500.0,0.00021917,2]
[323164858,1713762638755,-604.56,0.00021917,2]
[323164859,1713762638765,-500.0,0.00021917,2]
[323164860,1713762638774,-500.0,0.00021917,2]
[323164861,1713762638783,-500.0,0.00021917,2]
[323164862,1713762638793,-1273.55445638,0.00021917,2]
[323164873,1713762642979,-771.66554362,0.00021917,2]
[323164874,1713762642988,-500.0,0.00021917,2]
[323164875,1713762642997,-500.0,0.00021917,2]
[323164876,1713762643006,-500.0,0.00021917,2]
[323164877,1713762643015,-500.0,0.00021917,2]
[323164878,1713762643024,-500.0,0.00021917,2]
[323164879,1713762643033,-500.0,0.00021917,2]
[323164880,1713762643042,-500.0,0.00021917,2]
[323164881,1713762643052,-500.0,0.00021917,2]
[323164882,1713762643062,-511.46,0.00021917,2]
[323164883,1713762643072,-338.59205646,0.00021917,2]
[323164884,1713762643081,-501.9183311,0.00021917,2]
[323164885,1713762643091,-265.18921014,0.00021917,2]
[323164888,1713762643113,-251.12078986,0.00021917,2]
[323164889,1713762643122,-167.73839591,0.00021917,2]
[323164949,1713762645914,-301.24211674,0.00021917,2]
[323164950,1713762723338,676.50419561,0.000266,120]
[323164971,1713762989507,-585.43,0.00027397,30]
[323164972,1713762989527,-585.43,0.00027397,30]
[323164973,1713762989547,-585.43,0.00027397,30]
[323164974,1713762989567,-585.43,0.00027397,30]
[323164975,1713762989586,-585.43,0.00027397,30]
[323164976,1713762989606,-585.43,0.00027397,30]
[323164977,1713762989766,-585.43,0.00027397,30]
[323164978,1713762989787,-585.43,0.00027397,30]
[323164979,1713762989808,-585.43,0.00027397,30]
[323164980,1713762989830,-585.43,0.00027397,30]
[323164981,1713762989852,-585.43,0.00027397,30]
[323164982,1713762989875,-585.43,0.00027397,30]
[323164983,1713762989896,-585.43,0.00027397,30]
[323164984,1713762989917,-585.43,0.00027397,30]
[323164985,1713762989940,-585.43,0.00027397,30]
[323164986,1713762989960,-585.43,0.00027397,30]
[323164987,1713762989981,-585.43,0.00027397,30]
[323164988,1713762990000,-585.43,0.00027397,30]
[323164989,1713762990023,-585.43,0.00027397,30]
[323164990,1713762990043,-585.43,0.00027397,30]
[323164991,1713762990063,-585.43,0.00027397,30]
[323164992,1713762990091,-451.0,0.00027397,30]
[323164993,1713762990113,-585.43,0.00027671,30]
[323164994,1713762990141,-266669.54,0.0002778,120]
[323164996,1713763248849,6639.66576182,0.0002,2]
[323164997,1713763248880,15804.78974668,0.0002,2]
[323164999,1713763261723,3130.60253076,0.00020859,7]
[323165000,1713763265213,2741.0,0.000241,35]
[323165001,1713763265799,2741.0,0.0002409,35]
[323165002,1713763267718,2741.0,0.0002408,35]
[323165003,1713763340245,1019.00631368,0.00020856,7]
[323165005,1713763387525,1918.0,0.000241,35]
[323165006,1713763388198,1918.0,0.0002409,35]
[323165007,1713763388780,1918.0,0.0002408,35]
[323165008,1713763505109,1343.0,0.000241,35]
[323165009,1713763505679,1343.0,0.0002409,35]
[323165010,1713763507602,1343.0,0.0002408,35]
[323165011,1713763625297,940.0,0.0002419,35]
[323165012,1713763625867,940.0,0.0002418,35]
[323165013,1713763627558,940.0,0.0002417,35]
[323165017,1713763745638,658.0,0.000241,35]
[323165018,1713763747490,658.0,0.0002409,35]
[323165019,1713763748065,658.0,0.0002408,35]
[323165041,1713763832060,-300.0,0.00020833,2]
[323165043,1713763832070,-300.54641186,0.00020833,7]
[323165258,1713763867709,461.0,0.000241,35]
[323165259,1713763868347,461.0,0.0002409,35]
[323165260,1713763868957,461.0,0.0002408,35]
[323165263,1713763987558,322.0,0.000241,35]
[323165264,1713763988107,322.0,0.0002409,35]
[323165265,1713763989353,322.0,0.0002408,35]
[323165266,1713764105116,226.0,0.0002419,35]
[323165267,1713764105703,226.0,0.0002418,35]
[323165268,1713764107876,226.0,0.0002417,35]
[323165269,1713764225704,158.0,0.000241,35]
[323165270,1713764227559,158.0,0.0002409,35]
[323165271,1713764228051,158.0,0.0002408,35]
[323165272,1713764345311,150.5,0.000241,35]
[323165273,1713764345891,150.5,0.0002409,35]
[323165274,1713764347601,150.5,0.0002408,35]
[323165284,1713764465759,150.5,0.0002419,35]
[323165285,1713764467700,150.5,0.0002418,35]
[323165286,1713764468246,150.5,0.0002417,35]
[323165288,1713764585810,207.07,0.00024105,35]
[323165341,1713765032315,-3130.60253076,0.00020388,7]
[323165342,1713765032324,-5458.5886175,0.00020389,2]
[323165343,1713765032333,-300.0,0.00020389,2]
[323165345,1713765032342,-1677.7484322,0.0002039,2]
[323165347,1713765032351,-364.8548493,0.0002039,2]
[323165349,1713765032362,-1054.6690673,0.00020391,2]
[323165351,1713765032371,-300.0,0.00020395,2]
[323165353,1713765032380,-300.0,0.00020395,2]
[323165355,1713765032388,-220.557207,0.00020409,2]
[323165357,1713765032398,-6595.66653193,0.00020468,5]
[323165359,1713765032407,-1757.98426045,0.00020763,2]
[323165361,1713765032418,-3596.00848278,0.00020859,2]
[323165363,1713765032427,-625.1258806,0.00020863,2]
[323165365,1713765032437,-153.0,0.00021241,2]
[323165367,1713765032446,-203.544759,0.00021378,2]
[323165369,1713765032455,-153.0,0.00021378,2]
[323165371,1713765032463,-153.0,0.00021378,2]
[323165373,1713765032472,-203.544759,0.00021378,2]
[323165374,1713765032482,-203.544759,0.00021378,2]
[323165376,1713765032491,-203.544759,0.00021378,2]
[323165377,1713765032500,-203.544759,0.00021378,2]
[323165378,1713765032508,-203.544759,0.00021378,2]
[323165380,1713765032517,-153.0,0.00021478,2]
[323165382,1713765032527,-153.0,0.00021478,2]
[323165384,1713765032536,-153.0,0.00021478,2]
[323165386,1713765032547,-153.0,0.00021478,2]
[323165388,1713765032556,-153.0,0.00021652,2]
[323165390,1713765032568,-163.49515879,0.00021697,2]
[323165392,1713765032577,-203.4958838,0.000217,2]
[323165394,1713765032586,-153.0,0.000217,2]
[323165396,1713765032595,-153.0,0.000217,2]
[323165398,1713765032604,-153.0,0.000217,2]
[323165400,1713765032616,-153.0,0.000217,2]
[323165402,1713765032626,-207.7969067,0.000217,2]
[323165404,1713765032636,-203.544759,0.000217,2]
[323165406,1713765032645,-153.0,0.000217,2]
[323165408,1713765032654,-153.0,0.000217,2]
[323165410,1713765032663,-153.0,0.000217,2]
[323165412,1713765032672,-153.0,0.000217,2]
[323165414,1713765032681,-203.544759,0.000217,2]
[323165416,1713765032691,-419.39507495,0.000217,2]
[323165418,1713765032701,-186.8451329,0.00021752,2]
[323165420,1713765032709,-163.73491512,0.00021815,2]
[323165422,1713765032719,-163.73491512,0.00021817,2]
[323165424,1713765032727,-153.0,0.000219,2]
[323165426,1713765032737,-153.0,0.000219,2]
[323165428,1713765032746,-153.0,0.000219,2]
[323165430,1713765032756,-153.0,0.000219,2]
[323165432,1713765032765,-153.0,0.000219,2]
[323165434,1713765032775,-203.4958838,0.000219,2]
[323165436,1713765032784,-153.0,0.000219,2]
[323165438,1713765032794,-153.0,0.000219,2]
[323165440,1713765032803,-153.0,0.000219,2]
[323165442,1713765032817,-203.4958838,0.000219,2]
[323165444,1713765032826,-153.0,0.000219,2]
[323165446,1713765032835,-203.4958838,0.000219,2]
[323165448,1713765032844,-153.0,0.000219,2]
[323165450,1713765032854,-153.0,0.000219,2]
[323165452,1713765032864,-153.0,0.000219,2]
[323165453,1713765032874,-203.4958838,0.000219,2]
[323165455,1713765032883,-203.4958838,0.000219,2]
[323165457,1713765032893,-155.3780445,0.000219,2]
[323165459,1713765032902,-154.6062945,0.000219,2]
[323165461,1713765032911,-2596.0615486,0.00021913,2]
[323165463,1713765032920,-541.65651213,0.00021914,2]
[323165465,1713765032929,-412.85144093,0.00021915,2]
[323165467,1713765032938,-53043.19287248,0.00021915,2]
[323165470,1713765032951,-270.8,0.00021915,2]
[323165553,1713765041654,1000.0,0.00025,30]
[323165591,1713765047006,-163.4951588,0.00021697,2]
[323165592,1713765047015,-1158.4048412,0.00021914,2]
[323165595,1713765047061,-4300.1837763,0.00021914,2]
[323165597,1713765047071,-5821.86976854,0.00021915,2]
[323165598,1713765047079,-2632.0483274,0.00021915,2]
[323165599,1713765047088,-160.0,0.00021916,2]
[323165601,1713765047097,-166.05878402,0.00021916,2]
[323165602,1713765047107,-92632.44756021,0.00021917,2]
[323165603,1713765047116,-500.0,0.00021917,2]
[323165604,1713765047125,-500.0,0.00021917,2]
[323165606,1713765047134,-500.0,0.00021917,2]
[323165607,1713765047144,-500.0,0.00021917,2]
[323165608,1713765047153,-500.0,0.00021917,2]
[323165609,1713765047162,-500.0,0.00021917,2]
[323165610,1713765047171,-880.06,0.00021917,2]
[323165611,1713765047180,-500.0,0.00021917,2]
[323165612,1713765047189,-684.06,0.00021917,2]
[323165613,1713765047198,-684.06,0.00021917,2]
[323165614,1713765047208,-684.06,0.00021917,2]
[323165615,1713765047217,-684.06,0.00021917,2]
[323165616,1713765047227,-684.06,0.00021917,2]
[323165617,1713765047236,-684.06,0.00021917,2]
[323165618,1713765047246,-684.06,0.00021917,2]
[323165619,1713765047255,-684.06,0.00021917,2]
[323165620,1713765047266,-684.06,0.00021917,2]
[323165621,1713765047275,-684.06,0.00021917,2]
[323165622,1713765047284,-684.06,0.00021917,2]
[323165623,1713765047294,-684.06,0.00021917,2]
[323165624,1713765047304,-500.0,0.00021917,2]
[323165625,1713765047313,-684.06,0.00021917,2]
[323165626,1713765047323,-684.06,0.00021917,2]
[323165627,1713765047332,-684.06,0.00021917,2]
[323165628,1713765047341,-746.44,0.00021917,2]
[323165629,1713765047350,-151.0,0.00021917,2]
[323165630,1713765047359,-152.768227,0.00021917,2]
[323165631,1713765047368,-500.0,0.00021917,2]
[323165632,1713765047378,-500.0,0.00021917,2]
[323165633,1713765047387,-500.0,0.00021917,2]
[323165634,1713765047396,-500.0,0.00021917,2]
[323165635,1713765047405,-500.0,0.00021917,2]
[323165636,1713765047414,-500.0,0.00021917,2]
[323165637,1713765047424,-652.0,0.00021917,2]
[323165638,1713765047434,-500.0,0.00021917,2]
[323165639,1713765047443,-538.44,0.00021917,2]
[323165640,1713765047452,-500.0,0.00021917,2]
[323165641,1713765047462,-500.0,0.00021917,2]
[323165642,1713765047472,-500.0,0.00021917,2]
[323165643,1713765047481,-217.86644057,0.00021917,2]
[323165644,1713765047491,-500.0,0.00021917,2]
[323165645,1713765047500,-500.0,0.00021917,2]
[323165646,1713765047510,-500.0,0.00021917,2]
[323165647,1713765047519,-226.99804,0.00021917,2]
[323165648,1713765047528,-537.49,0.00021917,2]
[323165649,1713765047540,-500.0,0.00021917,2]
[323165650,1713765047551,-506.72288247,0.00021917,2]
[323165651,1713765047560,-500.0,0.00021917,2]
[323165652,1713765047569,-502.91610277,0.00021917,2]
[323165653,1713765047580,-514.4965161,0.00021917,2]
[323165654,1713765047589,-500.0,0.00021917,2]
[323165655,1713765047599,-2079.23,0.00021917,2]
[323165656,1713765047608,-500.6276836,0.00021917,2]
[323165657,1713765047617,-151.0,0.00021917,2]
[323165658,1713765047628,-500.0,0.00021917,2]
[323165659,1713765047637,-151.0,0.00021917,2]
[323165660,1713765047647,-151.0,0.00021917,2]
[323165661,1713765047656,-500.0,0.00021917,2]
[323165662,1713765047665,-500.0,0.00021917,2]
[323165663,1713765047674,-500.0,0.00021917,2]
[323165664,1713765047683,-500.0,0.00021917,2]
[323165665,1713765047692,-500.0,0.00021917,2]
[323165666,1713765047701,-500.0,0.00021917,2]
[323165667,1713765047712,-151.0,0.00021917,2]
[323165668,1713765047721,-588.66,0.00021917,2]
[323165669,1713765047731,-500.0,0.00021917,2]
[323165670,1713765047739,-500.0,0.00021917,2]
[323165671,1713765047749,-500.0,0.00021917,2]
[323165672,1713765047758,-2229.54,0.00021917,2]
[323165673,1713765047767,-630.53716964,0.00021917,2]
[323165674,1713765047776,-502.85245066,0.00021917,2]
[323165675,1713765047785,-500.0,0.00021917,2]
[323165676,1713765047794,-660.0,0.00021917,2]
[323165677,1713765047803,-1011.04,0.00021917,2]
[323165678,1713765047824,-500.0,0.00021917,2]
[323165679,1713765047849,-153.53448431,0.00021917,2]
[323165680,1713765047858,-500.0,0.00021917,2]
[323165681,1713765047868,-796.76,0.00021917,2]
[323165682,1713765047878,-500.4181131,0.00021917,2]
[323165683,1713765047886,-540.73,0.00021917,2]
[323165684,1713765047895,-500.0,0.00021917,2]
[323165685,1713765047905,-500.0,0.00021917,2]
[323165686,1713765047914,-722.71,0.00021917,2]
[323165687,1713765047923,-502.71402019,0.00021917,2]
[323165688,1713765047933,-500.0,0.00021917,2]
[323165689,1713765047943,-500.0,0.00021917,2]
[323165690,1713765047952,-500.0,0.00021917,2]
[323165691,1713765047961,-500.0,0.00021917,2]
[323165692,1713765047970,-500.0,0.00021917,2]
[323165693,1713765047979,-310.27417816,0.00021917,2]
[323165694,1713765047988,-500.0,0.00021917,2]
[323165695,1713765047998,-500.0,0.00021917,2]
[323165696,1713765048007,-506.40479449,0.00021917,2]
[323165697,1713765048016,-500.0,0.00021917,2]
[323165698,1713765048025,-311.21786437,0.00021917,2]
[323165699,1713765048034,-500.0,0.00021917,2]
[323165700,1713765048043,-500.0,0.00021917,2]
[323165701,1713765048052,-151.0,0.00021917,2]
[323165702,1713765048062,-151.0,0.00021917,2]
[323165703,1713765048070,-183.931658,0.00021917,2]
[323165704,1713765048080,-501.49946375,0.00021917,2]
[323165705,1713765048089,-500.0,0.00021917,2]
[323165706,1713765048098,-500.0,0.00021917,2]
[323165707,1713765048107,-1845.52,0.00021917,2]
[323165708,1713765048116,-151.0,0.00021917,2]
[323165709,1713765048127,-500.0,0.00021917,2]
[323165710,1713765048136,-500.0,0.00021917,2]
[323165711,1713765048144,-500.0,0.00021917,2]
[323165712,1713765048153,-712.44,0.00021917,2]
[323165713,1713765048162,-500.0,0.00021917,2]
[323165714,1713765048170,-2432.61,0.00021917,2]
[323165715,1713765048179,-609.93860702,0.00021917,2]
[323165716,1713765048188,-500.0,0.00021917,2]
[323165717,1713765048198,-2000.0,0.00021917,2]
[323165718,1713765048207,-500.0,0.00021917,2]
[323165719,1713765048217,-500.0,0.00021917,2]
[323165720,1713765048227,-1757.3,0.00021917,2]
[323165721,1713765048236,-500.0,0.00021917,2]
[323165722,1713765048245,-500.0,0.00021917,2]
[323165723,1713765048254,-500.0,0.00021917,2]
[323165724,1713765048264,-514.86978296,0.00021917,2]
[323165725,1713765048273,-500.0,0.00021917,2]
[323165726,1713765048282,-500.0,0.00021917,2]
[323165727,1713765048291,-513.16,0.00021917,2]
[323165728,1713765048301,-500.0,0.00021917,2]
[323165729,1713765048310,-500.0,0.00021917,2]
[323165730,1713765048319,-500.0,0.00021917,2]
[323165731,1713765048328,-500.0,0.00021917,2]
[323165732,1713765048337,-3141.48,0.00021917,2]
[323165733,1713765048346,-500.0,0.00021917,2]
[323165734,1713765048355,-500.0,0.00021917,2]
[323165735,1713765048364,-2305.57,0.00021917,2]
[323165736,1713765048373,-500.0,0.00021917,2]
[323165737,1713765048383,-500.0,0.00021917,2]
[323165738,1713765048393,-500.0,0.00021917,2]
[323165739,1713765048402,-500.0,0.00021917,2]
[323165740,1713765048412,-500.0,0.00021917,2]
[323165741,1713765048421,-500.0,0.00021917,2]
[323165743,1713765048430,-500.0,0.00021917,2]
[323165745,1713765048439,-500.0,0.00021917,2]
[323165746,1713765048449,-500.0,0.00021917,2]
[323165747,1713765048458,-500.0,0.00021917,2]
[323165749,1713765048467,-500.0,0.00021917,2]
[323165750,1713765048477,-500.0,0.00021917,2]
[323165751,1713765048486,-500.0,0.00021917,2]
[323165752,1713765048495,-500.0,0.00021917,2]
[323165753,1713765048504,-500.0,0.00021917,2]
[323165754,1713765048513,-500.0,0.00021917,2]
[323165755,1713765048523,-500.0,0.00021917,2]
[323165756,1713765048533,-156.15209941,0.00021917,2]
[323165757,1713765048547,-500.0,0.00021917,2]
[323165758,1713765048556,-500.0,0.00021917,2]
[323165759,1713765048565,-500.0,0.00021917,2]
[323165760,1713765048574,-500.0,0.00021917,2]
[323165761,1713765048695,-500.0,0.00021917,2]
[323165762,1713765048704,-867.03,0.00021917,2]
[323165763,1713765048714,-1168.91,0.00021917,2]
[323165764,1713765048723,-500.0,0.00021917,2]
[323165765,1713765048732,-1246.69,0.00021917,2]
[323165766,1713765048741,-663.19,0.00021917,2]
[323165767,1713765048750,-500.0,0.00021917,2]
[323165768,1713765048760,-503.7245007,0.00021917,2]
[323165769,1713765048769,-500.0,0.00021917,2]
[323165770,1713765048778,-500.0,0.00021917,2]
[323165771,1713765048787,-500.0,0.00021917,2]
[323165772,1713765048796,-500.0,0.00021917,2]
[323165773,1713765048805,-500.0,0.00021917,2]
[323165774,1713765048814,-505.69028873,0.00021917,2]
[323165775,1713765048823,-500.0,0.00021917,2]
[323165776,1713765048832,-554.39902582,0.00021917,2]
[323165777,1713765048842,-500.0,0.00021917,2]
[323165778,1713765048851,-500.0,0.00021917,2]
[323165779,1713765048860,-500.0,0.00021917,2]
[323165780,1713765048869,-500.0,0.00021917,2]
[323165781,1713765048879,-648.97,0.00021917,2]
[323165782,1713765048889,-198.90967801,0.00021917,2]
[323165783,1713765048898,-994.68,0.00021917,2]
[323165784,1713765048908,-500.0,0.00021917,2]
[323165785,1713765048918,-500.0,0.00021917,2]
[323165786,1713765048928,-292.7,0.00021917,2]
[323165787,1713765048937,-500.0,0.00021917,2]
[323165788,1713765048946,-506.64710236,0.00021917,2]
[323165789,1713765048956,-500.0,0.00021917,2]
[323165790,1713765048965,-500.0,0.00021917,2]
[323165791,1713765048975,-500.0,0.00021917,2]
[323165792,1713765048985,-500.0,0.00021917,2]
[323165793,1713765048996,-500.0,0.00021917,2]
[323165794,1713765049005,-2016.74,0.00021917,2]
[323165795,1713765049015,-500.0,0.00021917,2]
[323165796,1713765049025,-500.0,0.00021917,2]
[323165797,1713765049035,-500.0,0.00021917,2]
[323165798,1713765049045,-500.0,0.00021917,2]
[323165799,1713765049056,-201.16613814,0.00021917,2]
[323165800,1713765049067,-500.0,0.00021917,2]
[323165801,1713765049077,-245.35938406,0.00021917,2]
[323165802,1713765049088,-500.0,0.00021917,2]
[323165803,1713765049098,-500.0,0.00021917,2]
[323165804,1713765049107,-500.0,0.00021917,2]
[323165805,1713765049117,-500.0,0.00021917,2]
[323165806,1713765049128,-5265.16,0.00021917,2]
[323165807,1713765049138,-500.0,0.00021917,2]
[323165808,1713765049147,-501.70370906,0.00021917,2]
[323165809,1713765049158,-500.0,0.00021917,2]
[323165810,1713765049168,-556.33,0.00021917,2]
[323165811,1713765049179,-500.0,0.00021917,2]
[323165812,1713765049190,-500.0,0.00021917,2]
[323165813,1713765049200,-500.0,0.00021917,2]
[323165814,1713765049211,-500.0,0.00021917,2]
[323165815,1713765049220,-500.0,0.00021917,2]
[323165816,1713765049229,-500.0,0.00021917,2]
[323165817,1713765049238,-500.0,0.00021917,2]
[323165818,1713765049247,-500.0,0.00021917,2]
[323165819,1713765049258,-500.0,0.00021917,2]
[323165820,1713765049267,-500.0,0.00021917,2]
[323165821,1713765049278,-579.21776429,0.00021917,2]
[323165822,1713765049288,-500.0,0.00021917,2]
[323165823,1713765049299,-500.0,0.00021917,2]
[323165824,1713765049309,-500.0,0.00021917,2]
[323165825,1713765049319,-1043.99,0.00021917,2]
[323165826,1713765049330,-187.84943586,0.00021917,2]
[323165827,1713765049341,-500.0,0.00021917,2]
[323165828,1713765049351,-500.0,0.00021917,2]
[323165829,1713765049360,-500.0,0.00021917,2]
[323165830,1713765049370,-234.01687267,0.00021917,2]
[323165831,1713765049379,-500.0,0.00021917,2]
[323165832,1713765049388,-500.0,0.00021917,2]
[323165833,1713765049397,-907.64,0.00021917,2]
[323165834,1713765049406,-1565.7,0.00021917,2]
[323165835,1713765049417,-502.34284996,0.00021917,2]
[323165836,1713765049426,-1258.41,0.00021917,2]
[323165837,1713765049435,-500.0,0.00021917,2]
[323165838,1713765049445,-500.0,0.00021917,2]
[323165839,1713765049454,-816.81,0.00021917,2]
[323165840,1713765049463,-663.53,0.00021917,2]
[323165841,1713765049472,-500.0,0.00021917,2]
[323165842,1713765049482,-500.0,0.00021917,2]
[323165843,1713765049491,-500.11279958,0.00021917,2]
[323165844,1713765049500,-1547.37,0.00021917,2]
[323165845,1713765049510,-500.0,0.00021917,2]
[323165846,1713765049518,-500.0,0.00021917,2]
[323165847,1713765049527,-500.0,0.00021917,2]
[323165848,1713765049537,-500.0,0.00021917,2]
[323165849,1713765049550,-778.82,0.00021917,2]
[323165850,1713765049559,-500.0,0.00021917,2]
[323165851,1713765049568,-900.18,0.00021917,2]
[323165852,1713765049578,-3271.93,0.00021917,2]
[323165853,1713765049588,-500.0,0.00021917,2]
[323165854,1713765049597,-1051.44,0.00021917,2]
[323165855,1713765049607,-526.82,0.00021917,2]
[323165856,1713765049618,-500.0,0.00021917,2]
[323165857,1713765049629,-500.0,0.00021917,2]
[323165858,1713765049638,-500.0,0.00021917,2]
[323165859,1713765049648,-500.0,0.00021917,2]
[323165860,1713765049659,-500.0,0.00021917,2]
[323165861,1713765049669,-500.0,0.00021917,2]
[323165862,1713765049679,-500.0,0.00021917,2]
[323165863,1713765049690,-1156.44,0.00021917,2]
[323165864,1713765049699,-500.0,0.00021917,2]
[323165865,1713765049709,-500.0,0.00021917,2]
[323165866,1713765049719,-728.73,0.00021917,2]
[323165867,1713765049729,-502.56332546,0.00021917,2]
[323165868,1713765049739,-500.0,0.00021917,2]
[323165869,1713765049749,-1527.26,0.00021917,2]